fUST/lending_fUST_20250211
["ID","MTS","AMOUNT","RATE_DAILY","PERIOD"]
[352651986,1739217073950,-151.0,0.00013972,2]
[352651989,1739217073961,-1795.214927,0.00013972,2]
[352651991,1739217073972,-1795.214927,0.00013972,2]
[352651993,1739217073982,-735.03,0.00013972,2]
[352651995,1739217073992,-654.8,0.00013972,2]
[352651997,1739217074002,-661.79,0.00013972,2]
[352651999,1739217074012,-872.2,0.00013972,2]
[352652001,1739217074023,-225.24,0.00013972,2]
[352652003,1739217074033,-564.08,0.00013972,2]
[352652005,1739217074042,-151.0,0.00013972,2]
[352652007,1739217074052,-746.7,0.00013972,2]
[352652009,1739217074062,-522.33,0.00013972,2]
[352652011,1739217074071,-697.04,0.00013972,2]
[352652013,1739217074080,-503.826543,0.00013972,2]
[352652015,1739217074090,-503.826543,0.00013972,2]
[352652017,1739217074099,-1338.64,0.00013972,2]
[352652019,1739217074108,-151.0,0.00013972,2]
[352652021,1739217074118,-1444.41,0.00013972,2]
[352652023,1739217074127,-228.06381,0.00013972,2]
[352652025,1739217074137,-228.06381,0.00013972,2]
[352652027,1739217074146,-993.38,0.00013972,2]
[352652029,1739217074156,-151.0,0.00013972,2]
[352652031,1739217074167,-1923.93,0.00013972,2]
[352652033,1739217074176,-816.51,0.00013972,2]
[352652035,1739217074185,-2855.64,0.00013972,2]
[352652037,1739217074195,-852.74,0.00013972,2]
[352652039,1739217074204,-2016.55,0.00013972,2]
[352652041,1739217074214,-3619.33,0.00013972,2]
[352652043,1739217074224,-3892.95,0.00013972,2]
[352652045,1739217074235,-624.51,0.00013972,2]
[352652047,1739217074245,-1133.68,0.00013972,2]
[352652049,1739217074255,-2543.96,0.00013972,2]
[352652051,1739217074265,-1052.65,0.00013972,2]
[352652053,1739217074276,-512.12,0.00013972,2]
[352652055,1739217074286,-1803.17,0.00013972,2]
[352652057,1739217074295,-1323.61,0.00013972,2]
[352652059,1739217074305,-11067.70924493,0.00013972,2]
[352652139,1739217075094,-7438.69753278,0.00010158,2]
[352652141,1739217075104,-516.84,0.00010958,2]
[352652143,1739217075114,-500.0,0.00010958,2]
[352652145,1739217075124,-500.0,0.00010958,2]
[352652148,1739217075134,-500.0,0.00011095,2]
[352652149,1739217075144,-516.84,0.00011095,2]
[352652151,1739217075154,-283.47294979,0.00011095,2]
[352652154,1739217075164,-515.7,0.00011232,2]
[352652156,1739217075175,-500.0,0.00011232,2]
[352652158,1739217075184,-516.84,0.00011232,2]
[352652160,1739217075195,-564.1292733,0.00011369,5]
[352652162,1739217075205,-515.7,0.00011369,2]
[352652164,1739217075215,-500.0,0.00011369,2]
[352652166,1739217075225,-516.84,0.00011369,2]
[352652168,1739217075234,-515.7,0.00011506,2]
[352652170,1739217075244,-500.0,0.00011506,2]
[352652172,1739217075254,-516.84,0.00011506,2]
[352652174,1739217075264,-515.7,0.00011643,2]
[352652176,1739217075275,-500.0,0.00011643,2]
[352652178,1739217075285,-516.84,0.00011643,2]
[352652180,1739217075295,-515.7,0.0001178,2]
[352652182,1739217075304,-500.0,0.0001178,2]
[352652184,1739217075314,-516.84,0.0001178,2]
[352652186,1739217075324,-515.7,0.00011917,2]
[352652188,1739217075334,-500.0,0.00011917,2]
[352652190,1739217075344,-516.84,0.00011917,2]
[352652192,1739217075353,-515.7,0.00012054,2]
[352652194,1739217075363,-500.0,0.00012054,2]
[352652196,1739217075372,-516.84,0.00012054,2]
[352652198,1739217075382,-515.7,0.00012191,2]
[352652200,1739217075391,-500.0,0.00012191,2]
[352652202,1739217075401,-516.84,0.00012191,2]
[352652204,1739217075413,-515.7,0.00012328,2]
[352652206,1739217075424,-500.0,0.00012328,2]
[352652208,1739217075434,-516.84,0.00012328,2]
[352652210,1739217075444,-515.7,0.00012465,2]
[352652212,1739217075453,-500.0,0.00012465,2]
[352652214,1739217075463,-516.84,0.00012465,2]
[352652216,1739217075473,-515.7,0.00012602,2]
[352652218,1739217075482,-500.0,0.00012602,2]
[352652220,1739217075492,-516.84,0.00012602,2]
[352652222,1739217075501,-515.7,0.00012739,2]
[352652224,1739217075512,-263.9,0.00012739,2]
[352652226,1739217075521,-516.84,0.00012739,2]
[352652228,1739217075532,-515.7,0.00012876,2]
[352652230,1739217075542,-516.84,0.00012876,2]
[352652232,1739217075554,-515.7,0.00013013,2]
[352652234,1739217075563,-516.84,0.00013013,2]
[352652236,1739217075571,-515.7,0.0001315,2]
[352652238,1739217075582,-516.84,0.0001315,2]
[352652240,1739217075592,-515.7,0.00013287,2]
[352652242,1739217075602,-516.84,0.00013287,2]
[352652244,1739217075611,-515.7,0.00013424,2]
[352652246,1739217075621,-515.7,0.00013561,2]
[352652247,1739217075630,-515.7,0.00013698,2]
[352652248,1739217075640,-517.16075507,0.00013972,2]
[352652249,1739217075650,-860.92,0.00013972,2]
[352652250,1739217075660,-4800.77,0.00013972,2]
[352652251,1739217075670,-585.45,0.00013972,2]
[352652252,1739217075680,-500.0,0.00013972,2]
[352652253,1739217075690,-916.7,0.00013972,2]
[352652254,1739217075700,-29101.39,0.00013972,2]
[352652255,1739217075710,-1273.32,0.00013972,2]
[352652256,1739217075719,-1025.97,0.00013972,2]
[352652257,1739217075729,-1916.6,0.00013972,2]
[352652258,1739217075739,-1515.05,0.00013972,2]
[352652259,1739217075749,-1019.81,0.00013972,2]
[352652260,1739217075758,-501.45,0.00013972,2]
[352652262,1739217075768,-500.0,0.00013972,2]
[352652264,1739217075779,-14265.64,0.00013972,2]
[352652266,1739217075789,-501.51,0.00013972,2]
[352652268,1739217075799,-500.0,0.00013972,2]
[352652270,1739217075809,-621.7,0.00013972,2]
[352652272,1739217075819,-3666.21,0.00013972,2]
[352652274,1739217075828,-1588.62,0.00013972,2]
[352652275,1739217075838,-778.17,0.00013972,2]
[352652278,1739217075847,-1513.57,0.00013972,2]
[352652280,1739217075858,-537.86,0.00013972,2]
[352652282,1739217075867,-3318.52,0.00013972,2]
[352652284,1739217075877,-8633.74,0.00013972,2]
[352652286,1739217075886,-1563.78,0.00013972,2]
[352652288,1739217075896,-663.02,0.00013972,2]
[352652290,1739217075905,-540.59,0.00013972,2]
[352652292,1739217075917,-1721.85,0.00013972,2]
[352652294,1739217075926,-1093.42,0.00013972,2]
[352652296,1739217075936,-732.73,0.00013972,2]
[352652298,1739217075945,-517.15,0.00013972,2]
[352652300,1739217075954,-1107.21,0.00013972,2]
[352652301,1739217075964,-3083.07,0.00013972,2]
[352652303,1739217075973,-505.0,0.00014,4]
[352652316,1739217076082,-151.0,0.00014109,2]
[352652318,1739217076092,-151.0,0.00014109,2]
[352652320,1739217076101,-735.14,0.00014109,2]
[352652322,1739217076110,-399.696085,0.00014109,2]
[352652324,1739217076119,-399.696085,0.00014109,2]
[352652326,1739217076129,-151.0,0.00014109,2]
[352652328,1739217076139,-655.00190579,0.00014109,2]
[352652330,1739217076149,-661.96407671,0.00014109,2]
[352652332,1739217076158,-227.9909,0.00014109,2]
[352652334,1739217076168,-227.9909,0.00014109,2]
[352652336,1739217076177,-872.38,0.00014109,2]
[352652338,1739217076188,-564.31,0.00014109,2]
[352652340,1739217076197,-746.83009282,0.00014109,2]
[352652342,1739217076207,-151.0,0.00014109,2]
[352652344,1739217076217,-522.4641358,0.00014109,2]
[352652346,1739217076226,-697.06,0.00014109,2]
[352652348,1739217076236,-1338.87021612,0.00014109,2]
[352652350,1739217076245,-1444.59,0.00014109,2]
[352652352,1739217076255,-993.43349741,0.00014109,2]
[352652354,1739217076264,-1923.99,0.00014109,2]
[352652356,1739217076275,-816.72844018,0.00014109,2]
[352652358,1739217076284,-2855.74,0.00014109,2]
[352652360,1739217076294,-852.88609135,0.00014109,2]
[352652362,1739217076303,-2016.6255219,0.00014109,2]
[352652365,1739217076314,-3893.08873486,0.00014109,2]
[352652367,1739217076323,-1133.77089921,0.00014109,2]
[352652369,1739217076333,-2544.19827327,0.00014109,2]
[352652370,1739217076343,-1052.69334932,0.00014109,2]
[352652373,1739217076353,-512.21,0.00014109,2]
[352652375,1739217076363,-1803.3646338,0.00014109,2]
[352652376,1739217076372,-1323.62,0.00014109,2]
[352652379,1739217076382,-11585.03670054,0.00014109,2]
[352652380,1739217076392,-861.03,0.00014109,2]
[352652382,1739217076402,-4800.80888095,0.00014109,2]
[352652385,1739217076411,-585.68,0.00014109,2]
[352652386,1739217076421,-441.69539092,0.00014109,2]
[352652388,1739217076431,-916.76,0.00014109,2]
[352652390,1739217076442,-29101.45266795,0.00014109,2]
[352652392,1739217076452,-1273.35246229,0.00014109,2]
[352652394,1739217076462,-1026.03,0.00014109,2]
[352652396,1739217076471,-1916.78,0.00014109,2]
[352652398,1739217076481,-1515.11,0.00014109,2]
[352652401,1739217076494,-1020.00886175,0.00014109,2]
[352652402,1739217076504,-501.45780795,0.00014109,2]
[352652404,1739217076514,-219.49,0.00014109,2]
[352652407,1739217076529,-14265.78372575,0.00014109,2]
[352652409,1739217076540,-501.69925844,0.00014109,2]
[352652410,1739217076552,-309.76,0.00014109,2]
[352652412,1739217076562,-621.86950702,0.00014109,2]
[352652415,1739217076573,-3666.36336154,0.00014109,2]
[352652417,1739217076583,-1588.68422425,0.00014109,2]
[352652419,1739217076594,-778.18167589,0.00014109,2]
[352652421,1739217076605,-1513.76304756,0.00014109,2]
[352652423,1739217076614,-537.92435508,0.00014109,2]
[352652424,1739217076623,-3318.67723928,0.00014109,2]
[352652426,1739217076635,-8633.81141532,0.00014109,2]
[352652429,1739217076646,-1563.86,0.00014109,2]
[352652430,1739217076655,-663.21,0.00014109,2]
[352652432,1739217076665,-540.8108476,0.00014109,2]
[352652434,1739217076675,-1721.97,0.00014109,2]
[352652437,1739217076685,-1093.43339806,0.00014109,2]
[352652438,1739217076695,-732.74,0.00014109,2]
[352652440,1739217076705,-517.32,0.00014109,2]
[352652442,1739217076714,-1107.3,0.00014109,2]
[352652444,1739217076724,-3083.17,0.00014109,2]
[352652446,1739217076734,-511.71832837,0.0001412,2]
[352652448,1739217076744,-500.0,0.0001412,2]
[352652450,1739217076753,-156.87499977,0.00014145,2]
[352652452,1739217076762,-266.414,0.00014145,2]
[352652454,1739217076772,-6847.95,0.000142,14]
[352652456,1739217076783,-1738.24,0.000142,2]
[352652458,1739217076793,-1000.56880759,0.00014247,2]
[352652460,1739217076802,-1000.0,0.00014247,2]
[352652462,1739217076812,-1000.0,0.00014247,2]
[352652464,1739217076822,-592.38746212,0.00014247,2]
[352652466,1739217076832,-280.04062401,0.00014323,2]
[352652468,1739217076842,-354.8426056,0.00014329,2]
[352652470,1739217076851,-354.8426056,0.00014329,2]
[352652472,1739217076863,-354.8426056,0.00014329,2]
[352652474,1739217076872,-354.8426056,0.00014329,2]
[352652477,1739217076883,-354.8426056,0.00014329,2]
[352652479,1739217076892,-354.7326672,0.00014329,2]
[352652481,1739217076902,-150.0,0.00014472,2]
[352652483,1739217076912,-538.0,0.00014472,2]
[352652485,1739217076923,-1969.0,0.00014472,2]
[352652486,1739217076932,-2294.0,0.00014472,2]
[352652488,1739217076942,-588.29089741,0.00014485,2]
[352652490,1739217076951,-588.29089741,0.00014585,2]
[352652492,1739217076961,-588.29089741,0.00014685,2]
[352652494,1739217076970,-600.0,0.00014734,2]
[352652497,1739217076980,-239.3416052,0.0001474,2]
[352652499,1739217076990,-215.839967,0.0001474,2]
[352652501,1739217077001,-154.604472,0.0001474,2]
[352652503,1739217077010,-263.1710528,0.0001474,2]
[352652505,1739217077019,-154.604472,0.0001474,2]
[352652507,1739217077030,-215.839967,0.0001474,2]
[352652508,1739217077040,-153.0,0.0001474,2]
[352652510,1739217077050,-215.839967,0.0001474,2]
[352652512,1739217077059,-153.0,0.0001474,2]
[352652514,1739217077069,-153.0,0.0001474,2]
[352652516,1739217077079,-215.839967,0.0001474,2]
[352652518,1739217077088,-154.604472,0.0001474,2]
[352652520,1739217077097,-215.6277195,0.0001474,2]
[352652522,1739217077107,-154.604472,0.0001474,2]
[352652524,1739217077116,-154.604472,0.0001474,2]
[352652526,1739217077126,-154.604472,0.0001474,2]
[352652528,1739217077135,-154.604472,0.0001474,2]
[352652530,1739217077144,-154.604472,0.0001474,2]
[352652532,1739217077154,-154.604472,0.0001474,2]
[352652534,1739217077164,-154.604472,0.0001474,2]
[352652536,1739217077173,-154.604472,0.0001474,2]
[352652538,1739217077183,-154.604472,0.0001474,2]
[352652540,1739217077192,-154.604472,0.0001474,2]
[352652542,1739217077202,-151.0,0.0001474,2]
[352652544,1739217077211,-220.091735,0.0001474,2]
[352652546,1739217077221,-220.091735,0.0001474,2]
[352652549,1739217077230,-588.29089741,0.00014785,2]
[352652550,1739217077240,-1152.0,0.00014861,2]
[352652552,1739217077250,-588.29089741,0.00014885,2]
[352652553,1739217077260,-500.0,0.00014927,2]
[352652555,1739217077269,-588.29089741,0.00014985,2]
[352652557,1739217077280,-1000.0,0.00015,2]
[352652559,1739217077291,-166.0,0.00015068,2]
[352652561,1739217077300,-588.29089741,0.00015085,2]
[352652563,1739217077310,-588.29089741,0.00015185,2]
[352652565,1739217077319,-1500.0,0.00015248,2]
[352652567,1739217077329,-1500.0,0.00015248,2]
[352652569,1739217077340,-522.0,0.00015254,2]
[352652571,1739217077350,-280.04062401,0.00015257,2]
[352652573,1739217077359,-588.29089741,0.00015285,2]
[352652575,1739217077369,-160.0,0.00015302,3]
[352652577,1739217077379,-588.29089741,0.00015385,2]
[352652579,1739217077388,-202.2444336,0.00015397,2]
[352652581,1739217077397,-473.64374368,0.0001545,2]
[352652583,1739217077407,-588.29089741,0.00015485,2]
[352652585,1739217077416,-505.0,0.000155,5]
[352652587,1739217077425,-435.4625161,0.00015562,2]
[352652589,1739217077435,-153.0,0.00015562,2]
[352652591,1739217077444,-588.29089741,0.00015585,2]
[352652593,1739217077453,-588.29089741,0.00015685,2]
[352652595,1739217077463,-164.966345,0.00015685,2]
[352652597,1739217077472,-164.966345,0.00015685,2]
[352652599,1739217077481,-588.29089741,0.00015785,2]
[352652601,1739217077490,-164.519848,0.00015869,2]
[352652603,1739217077500,-588.29089741,0.00015885,2]
[352652605,1739217077510,-588.29089741,0.00015985,2]
[352652607,1739217077520,-150.0,0.00016,2]
[352652609,1739217077529,-1000.0,0.00016,2]
[352652611,1739217077538,-291821.09601231,0.00016,2]
[352652613,1739217077554,-1000.0,0.00016,2]
[352652615,1739217077566,-4898.37672708,0.00016,2]
[352652618,1739217077582,-515.7,0.00013835,2]
[352652620,1739217077592,-11605.16266627,0.00016,2]
[352652622,1739217077603,-339.42320598,0.00016,2]
[352652648,1739217077855,-701.02920964,0.00016,2]
[352652651,1739217077866,-120416.24148358,0.00016,2]
[352652653,1739217077878,-5541.14701187,0.00016,2]
[352652667,1739217078004,-500.0,0.00010958,2]
[352652669,1739217078014,-500.0,0.00010958,2]
[352652671,1739217078023,-260.58804584,0.00010958,2]
[352652673,1739217078037,-239.41195416,0.00010958,2]
[352652674,1739217078047,-516.84,0.00013424,2]
[352652676,1739217078057,-516.84,0.00013561,2]
[352652678,1739217078067,-516.84,0.00013698,2]
[352652680,1739217078077,-516.84,0.00013835,2]
[352652682,1739217078086,-390.22804576,0.00013972,2]
[352652685,1739217078099,-125.47195424,0.00013972,2]
[352652687,1739217078109,-516.84,0.00013972,2]
[352652689,1739217078119,-515.79,0.00014109,2]
[352652691,1739217078128,-517.05723499,0.00014109,2]
[352652693,1739217078138,-396.0,0.00014472,2]
[352652694,1739217078147,-4517.6652178,0.00016,2]
[352652718,1739217078368,-500.0,0.00010958,2]
[352652719,1739217078379,-135.07944737,0.00010958,2]
[352652720,1739217078390,-364.92055263,0.00010958,2]
[352652721,1739217078400,-500.0,0.00010958,2]
[352652722,1739217078411,-577.67,0.00011095,2]
[352652723,1739217078421,-57845.02402803,0.00016,2]
[352652724,1739217078431,-151.0,0.00016,2]
[352652725,1739217078441,-151.0,0.00016,2]
[352652726,1739217078450,-151.0,0.00016,2]
[352652727,1739217078461,-151.0,0.00016,2]
[352652728,1739217078471,-151.0,0.00016,2]
[352652729,1739217078480,-213.719728,0.00016,2]
[352652730,1739217078490,-1795.214927,0.00016,2]
[352652731,1739217078500,-1795.214927,0.00016,2]
[352652732,1739217078510,-308.194264,0.00016,2]
[352652733,1739217078520,-308.194264,0.00016,2]
[352652734,1739217078531,-399.696085,0.00016,2]
[352652736,1739217078541,-399.696085,0.00016,2]
[352652737,1739217078554,-151.0,0.00016,2]
[352652739,1739217078565,-227.9909,0.00016,2]
[352652741,1739217078575,-227.9909,0.00016,2]
[352652743,1739217078585,-151.0,0.00016,2]
[352652745,1739217078596,-151.0,0.00016,2]
[352652747,1739217078607,-503.826543,0.00016,2]
[352652750,1739217078619,-503.826543,0.00016,2]
[352652752,1739217078630,-151.0,0.00016,2]
[352652754,1739217078640,-228.06381,0.00016,2]
[352652755,1739217078649,-228.06381,0.00016,2]
[352652758,1739217078659,-151.0,0.00016,2]
[352652760,1739217078669,-659.0357,0.00016,2]
[352652762,1739217078679,-164.966345,0.00016,2]
[352652764,1739217078689,-659.0357,0.00016,2]
[352652766,1739217078698,-164.966349,0.00016,2]
[352652767,1739217078707,-151.0,0.00016,2]
[352652770,1739217078718,-220.091735,0.00016,2]
[352652772,1739217078728,-220.09174,0.00016,2]
[352652774,1739217078743,-588.29089741,0.00016085,2]
[352652776,1739217078755,-600.0,0.00016104,2]
[352652778,1739217078766,-631.86,0.00016164,2]
[352652780,1739217078778,-588.29089741,0.00016185,2]
[352652783,1739217078789,-280.04062401,0.00016192,2]
[352652785,1739217078800,-160.0,0.00016261,4]
[352652787,1739217078810,-588.29089741,0.00016285,2]
[352652788,1739217078821,-153.965,0.0001634,2]
[352652790,1739217078830,-1483.0,0.00016344,2]
[352652793,1739217078841,-588.29089741,0.00016385,2]
[352652795,1739217078851,-152.0,0.00016434,2]
[352652796,1739217078861,-500.0,0.00016438,2]
[352652798,1739217078872,-1000.0,0.00016438,7]
[352652801,1739217078883,-1000.0,0.00016438,7]
[352652802,1739217078899,-1000.0,0.00016438,7]
[352652804,1739217078909,-1000.0,0.00016438,7]
[352652806,1739217078919,-1000.0,0.00016438,7]
[352652808,1739217078929,-1000.0,0.00016438,7]
[352652810,1739217078939,-1000.0,0.00016438,7]
[352652812,1739217078949,-1000.0,0.00016438,7]
[352652814,1739217078959,-1000.0,0.00016438,7]
[352652816,1739217078969,-1000.0,0.00016438,7]
[352652818,1739217078979,-1000.0,0.00016438,7]
[352652820,1739217078988,-1000.0,0.00016438,7]
[352652823,1739217078999,-1000.0,0.00016438,7]
[352652824,1739217079010,-1000.0,0.00016438,7]
[352652827,1739217079020,-1000.0,0.00016438,7]
[352652829,1739217079032,-1000.0,0.00016438,7]
[352652830,1739217079042,-1000.0,0.00016438,7]
[352652832,1739217079052,-1000.0,0.00016438,7]
[352652835,1739217079062,-1000.0,0.00016438,7]
[352652836,1739217079071,-1000.0,0.00016438,7]
[352652839,1739217079081,-1000.0,0.00016438,7]
[352652840,1739217079091,-1000.0,0.00016438,7]
[352652843,1739217079100,-1000.0,0.00016438,7]
[352652845,1739217079110,-1000.0,0.00016438,7]
[352652847,1739217079119,-1000.0,0.00016438,7]
[352652849,1739217079129,-1000.0,0.00016438,7]
[352652851,1739217079139,-1000.0,0.00016438,7]
[352652853,1739217079148,-1000.0,0.00016438,7]
[352652855,1739217079158,-1000.0,0.00016438,7]
[352652856,1739217079168,-1000.0,0.00016438,7]
[352652858,1739217079177,-1000.0,0.00016438,7]
[352652861,1739217079187,-1000.0,0.00016438,7]
[352652863,1739217079197,-1000.0,0.00016438,7]
[352652864,1739217079206,-1000.0,0.00016438,7]
[352652866,1739217079215,-1000.0,0.00016438,7]
[352652868,1739217079224,-1000.0,0.00016438,7]
[352652879,1739217079320,-815.303282,0.00016438,7]
[352652881,1739217079330,-772533.51215232,0.00016484,2]
[352652883,1739217079340,-588.29089741,0.00016485,2]
[352652885,1739217079349,-1033.71555208,0.000165,2]
[352652887,1739217079359,-600.0,0.0001651,2]
[352652889,1739217079369,-248.05765348,0.00016546,2]
[352652891,1739217079379,-2000.0,0.00016546,2]
[352652893,1739217079388,-588.29089741,0.00016585,2]
[352652895,1739217079398,-152.0,0.0001663,2]
[352652897,1739217079407,-152.0,0.0001663,2]
[352652899,1739217079417,-205.94,0.0001663,2]
[352652901,1739217079427,-164.0,0.00016634,2]
[352652903,1739217079436,-164.0,0.00016634,2]
[352652905,1739217079447,-164.0,0.00016634,2]
[352652907,1739217079457,-164.0,0.00016634,2]
[352652910,1739217079467,-164.0,0.00016634,2]
[352652911,1739217079476,-164.0,0.00016634,2]
[352652914,1739217079485,-164.0,0.00016634,2]
[352652916,1739217079495,-171.87,0.00016634,2]
[352652918,1739217079504,-152.0,0.00016634,2]
[352652920,1739217079514,-152.0,0.00016634,2]
[352652921,1739217079524,-152.0,0.00016634,2]
[352652923,1739217079534,-152.0,0.00016634,2]
[352652925,1739217079544,-152.0,0.00016634,2]
[352652927,1739217079557,-152.0,0.00016634,2]
[352652929,1739217079567,-152.0,0.00016634,2]
[352652931,1739217079576,-152.0,0.00016634,2]
[352652933,1739217079585,-152.0,0.00016634,2]
[352652936,1739217079596,-152.0,0.00016634,2]
[352652938,1739217079606,-152.0,0.00016634,2]
[352652940,1739217079615,-152.0,0.00016634,2]
[352652942,1739217079625,-152.0,0.00016634,2]
[352652944,1739217079637,-152.0,0.00016634,2]
[352652946,1739217079647,-152.0,0.00016634,2]
[352652947,1739217079656,-152.0,0.00016634,2]
[352652949,1739217079666,-152.0,0.00016634,2]
[352652951,1739217079675,-152.0,0.00016634,2]
[352652953,1739217079684,-260.57,0.00016634,2]
[352652955,1739217079694,-588.29089741,0.00016685,2]
[352652957,1739217079703,-14458.0909175,0.0001676,2]
[352652959,1739217079713,-588.29089741,0.00016785,2]
[352652961,1739217079722,-622.0,0.000168,2]
[352652963,1739217079732,-97260.70160596,0.00016807,14]
[352652965,1739217079741,-155.0,0.00016823,2]
[352652968,1739217079751,-154.0,0.00016823,2]
[352652970,1739217079761,-588.29089741,0.00016885,2]
[352652972,1739217079770,-164.519848,0.00016958,2]
[352652974,1739217079780,-588.29089741,0.00016985,2]
[352652976,1739217079789,-500.0,0.00016986,3]
[352652978,1739217079799,-317.0,0.0001699,2]
[352652979,1739217079809,-1000.0,0.00017,2]
[352652981,1739217079819,-3203.77958024,0.00017,120]
[352652983,1739217079828,-505.0,0.00017,6]
[352652985,1739217079838,-164.519848,0.00017,6]
[352652988,1739217079848,-170.4501297,0.00017022,2]
[352652990,1739217079858,-588.29089741,0.00017085,2]
[352652991,1739217079868,-2000.0,0.000171,2]
[352652993,1739217079878,-2000.0,0.000171,2]
[352652995,1739217079888,-302.48987,0.00017123,2]
[352652997,1739217079897,-280.04062401,0.00017126,2]
[352652999,1739217079907,-14059.06549484,0.0001716,2]
[352653001,1739217079917,-588.29089741,0.00017185,2]
[352653003,1739217079926,-150.15,0.00017186,2]
[352653005,1739217079935,-500.0,0.00017186,2]
[352653007,1739217079946,-500.0,0.00017186,2]
[352653009,1739217079955,-500.0,0.00017186,2]
[352653011,1739217079965,-150.14,0.00017186,2]
[352653013,1739217079975,-152.30199559,0.00017186,2]
[352653015,1739217079984,-150.18822459,0.00017186,2]
[352653017,1739217079995,-500.0,0.00017186,2]
[352653019,1739217080006,-500.0,0.00017186,2]
[352653021,1739217080016,-150.14,0.00017186,2]
[352653023,1739217080027,-150.14,0.00017186,2]
[352653026,1739217080038,-150.14,0.00017186,2]
[352653028,1739217080048,-150.14,0.00017186,2]
[352653030,1739217080058,-500.0,0.00017186,2]
[352653032,1739217080068,-850.12228066,0.00017186,2]
[352653034,1739217080078,-150.14,0.00017186,2]
[352653035,1739217080087,-500.0,0.00017186,2]
[352653037,1739217080097,-150.14,0.00017186,2]
[352653040,1739217080108,-150.14,0.00017186,2]
[352653042,1739217080117,-150.14,0.00017186,2]
[352653044,1739217080126,-306.92486719,0.00017193,2]
[352653046,1739217080137,-160.0,0.00017193,2]
[352653048,1739217080147,-160.0,0.00017193,2]
[352653050,1739217080156,-161.0,0.00017193,2]
[352653052,1739217080166,-156.0,0.00017193,2]
[352653054,1739217080176,-500.0,0.00017194,2]
[352653056,1739217080187,-95380.18729828,0.000172,2]
[352653058,1739217080196,-1000.0,0.000172,2]
[352653060,1739217080206,-151.0,0.000172,2]
[352653062,1739217080215,-151.0,0.000172,2]
[352653064,1739217080225,-500.0,0.00017216,2]
[352653066,1739217080235,-500.0,0.00017216,2]
[352653068,1739217080245,-160.0,0.00017221,5]
[352653070,1739217080255,-160.47802717,0.00017221,5]
[352653072,1739217080264,-151.0,0.00017225,2]
[352653074,1739217080273,-196.736681,0.00017225,2]
[352653076,1739217080283,-308.194264,0.00017225,2]
[352653078,1739217080292,-308.194264,0.00017225,2]
[352653080,1739217080302,-308.194264,0.00017225,2]
[352653082,1739217080312,-308.194264,0.00017225,2]
[352653084,1739217080321,-399.696085,0.00017225,2]
[352653086,1739217080330,-399.696078,0.00017225,2]
[352653088,1739217080340,-151.0,0.00017225,2]
[352653090,1739217080349,-227.9909,0.00017225,2]
[352653092,1739217080359,-227.990892,0.00017225,2]
[352653094,1739217080369,-151.0,0.00017225,2]
[352653096,1739217080380,-151.0,0.00017225,2]
[352653098,1739217080390,-503.826543,0.00017225,2]
[352653100,1739217080399,-503.826548,0.00017225,2]
[352653102,1739217080408,-2384962.66594997,0.00017226,61]
[352653104,1739217080418,-1116.70544842,0.00017226,120]
[352653106,1739217080427,-15171.97109026,0.00017226,60]
[352653108,1739217080436,-360930.65012314,0.00017226,61]
[352653110,1739217080445,-154.51204536,0.00017226,2]
[352653111,1739217080454,-2282426.94289304,0.00017226,61]